bitfinex/quotes_SOLUSD_20240616
["timestamp","ask_amount","ask_price","bid_price","bid_amount"]
[1718539144695,0.17,145.03,144.94,0.58639795]
[1718539146011,15.6694,145.04,144.95,0.17]
[1718539147115,15.6694,145.04,144.95,0.34]
[1718539151717,15.6694,145.04,144.94,20.58639795]
[1718539152324,0.17,145.03,144.94,20.58639795]
[1718539155629,0.68,145.03,144.94,20.58639795]
[1718539163122,15.6694,145.04,144.95,21.671]
[1718539163445,28.79157296,145.08,144.95,21.671]
[1718539164646,0.17,145.06,144.95,21.671]
[1718539164827,0.34,145.06,144.95,21.671]
[1718539165023,0.34,145.05,144.95,21.671]
[1718539165335,0.17,145.04,144.95,21.671]
[1718539166551,28.79157296,145.08,144.96,0.34]
[1718539166757,28.79157296,145.08,144.97,0.17]
[1718539166758,21.594,145.08,144.97,0.17]
[1718539167819,0.68,145.07,144.97,0.17]
[1718539169124,0.68,145.07,144.96,20.0]
[1718539173529,0.68,145.07,144.95,21.501]
[1718539204179,0.68,145.07,144.96,0.17]
[1718539204686,0.68,145.07,144.95,21.501]
[1718539205510,15.25,145.06,144.95,15.376]
[1718539205670,0.17,145.03,144.94,0.58639795]
[1718539205875,6.1486,145.02,144.94,0.58639795]
[1718539206070,6.1486,145.02,144.91,22.2784]
[1718539206071,0.17,144.99,144.91,22.2784]
[1718539206294,0.68,144.99,144.91,15.8429]
[1718539206474,0.68,144.99,144.88,23.79963933]
[1718539207090,15.25,145.0,144.88,23.79963933]
[1718539207403,6.1486,145.02,144.9,6.4355]
[1718539207607,15.25,145.04,144.93,0.17]
[1718539207764,15.25,145.04,144.94,0.58639795]
[1718539209177,0.17,145.03,144.94,0.58639795]
[1718539209505,0.68,145.03,144.94,0.58639795]
[1718539212007,0.17,145.03,144.94,0.58639795]
[1718539215701,0.51,145.03,144.94,0.58639795]
[1718539217081,0.17,145.02,144.94,0.58639795]
[1718539217278,0.68,145.02,144.94,0.58639795]
[1718539220621,6.9176,145.02,144.94,0.58639795]
[1718539222486,0.17,145.0,144.94,0.58639795]
[1718539222796,0.68,145.0,144.88,16.3676]
[1718539223717,45.68,145.0,144.88,16.3676]
[1718539224515,0.68,145.0,144.88,16.3676]
[1718539225084,0.68,145.0,144.89,0.58660031]
[1718539225607,0.17,144.98,144.89,0.58660031]
[1718539225787,0.68,144.98,144.89,0.58660031]
[1718539237729,0.68,144.98,144.9,16.4134]
[1718539243746,13.88019273,145.02,144.91,6.2527]
[1718539243903,7.17950946,145.02,144.91,6.2527]
[1718539245530,0.34,145.01,144.91,6.2527]
[1718539245836,0.68,145.01,144.91,6.2527]
[1718539248640,100.68,145.01,144.91,6.2527]
[1718539253911,7.17560145,145.0,144.91,6.2527]
[1718539254121,0.68,144.99,144.91,6.2527]
[1718539256742,7.17560145,145.0,144.91,6.2527]
[1718539257932,0.34,144.99,144.91,6.2527]
[1718539258118,0.51,144.98,144.91,6.2527]
[1718539258322,0.34,144.97,144.91,6.2527]
[1718539258538,0.34,144.96,144.91,6.2527]
[1718539258748,0.17,144.97,144.91,6.2527]
[1718539262244,36.34089515,145.03,144.91,6.2527]
[1718539263448,0.68,145.02,144.91,6.2527]
[1718539264531,7.6557,144.99,144.91,8.8059]
[1718539264717,7.6557,144.99,144.91,13.9124]
[1718539264918,2.5519,144.99,144.92,2.5531]
[1718539265128,5.2743,144.98,144.91,6.2527]
[1718539265351,26.0327,144.97,144.91,6.2527]
[1718539265556,7.6573,144.96,144.91,6.2527]
[1718539265728,23.4805,144.97,144.91,6.2527]
[1718539265918,26.0329,144.97,144.91,6.2527]
[1718539266242,0.51,144.97,144.91,6.2527]
[1718539266427,3.0623,144.97,144.91,6.2527]
[1718539266836,2.5526,144.95,144.91,6.2527]
[1718539267026,7.8274,144.96,144.91,6.2527]
[1718539267234,0.34,144.95,144.91,6.2527]
[1718539268656,0.17,144.95,144.91,6.2527]
[1718539268950,25.6933,144.97,144.91,6.2527]
[1718539268951,2.7224,144.96,144.91,6.2527]
[1718539269243,0.17,144.95,144.91,6.2527]
[1718539277435,0.34,144.96,144.91,6.2527]
[1718539278756,0.17,144.96,144.91,6.2527]
[1718539278963,0.51,144.97,144.91,6.2527]
[1718539280169,3.0622,144.97,144.91,6.2527]
[1718539281269,0.51,144.97,144.91,6.2527]
[1718539281446,2.5519,144.99,144.91,13.9124]
[1718539281766,22.9672,144.99,144.91,6.2527]
[1718539281967,2.5521,144.98,144.91,6.2527]
[1718539282269,22.9689,144.98,144.91,6.2527]
[1718539282455,2.5522,144.97,144.91,6.2527]
[1718539282657,25.6911,144.98,144.91,6.2527]
[1718539282854,0.34,144.97,144.91,6.2527]
[1718539283448,0.17,144.97,144.91,6.2527]
[1718539286476,7.8267,144.97,144.91,6.2527]
[1718539286772,2.7222,144.97,144.91,6.2527]
[1718539288576,2.5521,144.98,144.91,6.2527]
[1718539289546,22.9659,145.0,144.93,6.1379]
[1718539289775,25.5177,145.0,144.93,6.1379]
[1718539289980,2.5519,144.99,144.93,6.1379]
[1718539291671,15.3114,144.99,144.93,6.1379]
[1718539293678,2.552,144.98,144.93,6.1379]
[1718539293862,22.9671,144.99,144.93,6.1379]
[1718539293863,25.5191,144.99,144.93,6.1379]
[1718539294060,2.552,144.98,144.93,6.1379]
[1718539295351,7.6561,144.98,144.93,6.1379]
[1718539296178,2.552,144.98,144.93,6.1379]
[1718539296356,22.9673,144.99,144.93,6.1379]
[1718539296563,7.6568,144.97,144.93,6.1379]
[1718539296765,2.5521,144.98,144.93,6.1379]
[1718539297683,25.5197,144.99,144.93,6.1379]
[1718539297883,2.552,144.98,144.93,6.1379]
[1718539299462,25.5197,144.99,144.93,6.1379]
[1718539299664,2.552,144.98,144.93,6.1379]
[1718539300279,25.5197,144.99,144.93,6.1379]
[1718539300783,2.5521,144.98,144.93,6.1379]
[1718539302763,25.5197,144.99,144.93,6.1379]
[1718539304906,7.656,144.99,144.93,6.1379]
[1718539305201,22.9663,145.0,144.93,6.1379]
[1718539305701,2.5519,144.99,144.93,6.1379]
[1718539305867,22.9663,145.0,144.93,6.1379]
[1718539305868,25.5181,145.0,144.93,6.1379]
[1718539306271,7.6554,145.0,144.93,6.1379]
[1718539306586,2.5518,145.0,144.93,6.1379]
[1718539306890,7.6552,145.0,144.93,6.1379]
[1718539307795,2.5518,145.0,144.93,8.6908]
[1718539308273,25.5164,145.01,144.93,8.6908]
[1718539308474,5.1033,145.01,144.93,13.7966]
[1718539308680,2.5515,145.01,144.93,31.6667]
[1718539309093,2.5515,145.01,144.95,15.3094]
[1718539309298,2.5514,145.02,144.95,15.3094]
[1718539309504,7.6542,145.02,144.95,15.3094]
[1718539310517,2.5514,145.02,144.95,17.862]
[1718539310683,2.5513,145.03,144.96,9.1206]
[1718539311397,15.3072,145.03,144.96,6.5683]
[1718539312188,7.6537,145.03,144.96,6.5683]
[1718539312784,2.5513,145.03,144.96,9.1207]
[1718539313413,2.5513,145.03,144.96,6.5683]
[1718539313784,2.5513,145.03,144.96,9.1207]
[1718539314102,2.5513,145.03,144.96,6.5683]
[1718539315192,22.9598,145.04,144.96,9.1207]
[1718539315589,2.5512,145.03,144.96,9.1207]
[1718539316000,2.5512,145.03,144.96,6.5683]
[1718539316198,22.9598,145.04,144.96,9.1207]
[1718539316405,25.5109,145.04,144.96,9.1207]
[1718539316601,7.6533,145.04,144.96,14.2255]
[1718539316792,2.551,145.04,144.97,2.5522]
[1718539317604,2.5509,145.05,144.98,2.552]
[1718539317802,2.5509,145.05,144.98,15.5379]
[1718539318299,7.6525,145.05,144.98,15.5379]
[1718539318704,15.305,145.05,144.98,15.5379]
[1718539319221,2.5509,145.05,144.98,15.5379]
[1718539319400,2.5509,145.05,144.98,18.0899]
[1718539319917,7.6525,145.05,144.98,15.5379]
[1718539320703,7.6521,145.06,144.99,6.1092]
[1718539320890,15.3041,145.06,144.99,6.1092]
[1718539321096,7.6521,145.06,144.99,6.1092]
[1718539321610,5.1007,145.08,145.0,2.5515]
[1718539321814,7.6511,145.08,145.0,35.31]
[1718539322421,7.6511,145.08,145.0,27.6548]
[1718539323194,2.5504,145.08,145.01,2.5515]
[1718539323389,22.9515,145.09,145.01,2.5515]
[1718539323590,25.5017,145.09,145.01,2.5515]
[1718539323893,2.5503,145.08,145.01,2.5515]
[1718539324099,7.6507,145.09,145.01,15.309]
[1718539324415,17.8501,145.1,145.02,18.0892]
[1718539324416,25.5002,145.1,145.02,18.0892]
[1718539324714,2.5501,145.09,145.03,6.1092]
[1718539324921,7.6503,145.09,145.03,6.1092]
[1718539325100,15.3007,145.09,145.03,6.1092]
[1718539325504,7.6503,145.09,145.03,6.1092]
[1718539325714,2.5501,145.09,145.03,6.1092]
[1718539326696,23.35808327,145.15,145.0,20.17]
[1718539326697,6.70068327,145.15,145.04,13.9459]
[1718539326898,13.71467155,145.18,145.17,7.6461]
[1718539327098,13.71467155,145.18,145.17,44.96332638]
[1718539327301,13.71467155,145.18,145.14,2.5491]
[1718539327606,13.71467155,145.18,145.13,7.6482]
[1718539327921,5.44527151,145.18,145.15,2.549]
[1718539328219,5.44527151,145.18,145.17,2.5487]
[1718539328427,2.547,145.27,145.17,15.91691331]
[1718539328611,2.5467,145.29,145.19,2.5482]
[1718539328918,21.7501,145.31,145.2,13.36691331]
[1718539329129,21.7501,145.31,145.21,8.27081331]
[1718539329418,5.0929,145.3,145.22,8.27081331]
[1718539329626,2.5465,145.3,145.22,8.27081331]
[1718539329937,7.6394,145.3,145.22,8.27081331]
[1718539330803,7.6394,145.3,145.21,8.27081331]
[1718539331027,16.6574,145.31,145.22,10.81861331]
[1718539331214,19.2037,145.31,145.22,10.81861331]
[1718539331418,24.2962,145.31,145.22,8.27081331]
[1718539331806,2.5468,145.28,145.22,8.27081331]
[1718539332023,5.0931,145.3,145.22,8.27081331]
[1718539332228,5.0931,145.3,145.21,8.27081331]
[1718539332528,7.6396,145.3,145.22,8.27081331]
[1718539333016,0.28301201,145.23,145.22,8.27081331]
[1718539333797,0.28301201,145.23,145.22,2.5478]
[1718539334027,0.28301201,145.23,145.21,25.4795]
[1718539334229,0.28301201,145.23,145.22,10.81477997]
[1718539334529,0.28301201,145.23,145.22,8.26697997]
[1718539334822,0.28301201,145.23,145.22,2.5478]
[1718539335332,0.28301201,145.23,145.22,10.81481927]
[1718539336216,0.28301201,145.23,145.22,8.26701927]
[1718539336525,0.28301201,145.23,145.22,10.81481927]
[1718539336915,0.28301201,145.23,145.22,2.5478]
[1718539337317,0.28301201,145.23,145.22,25.4784]
[1718539338227,0.28301201,145.23,145.22,7.6435]
[1718539338434,0.28301201,145.23,145.22,2.5478]
[1718539339334,0.28301201,145.23,145.22,7.6435]
[1718539339939,0.17,145.3,145.22,7.6435]
[1718539340119,0.68,145.3,145.22,7.6435]
[1718539341206,16.5871,145.34,145.21,24.0479]
[1718539341406,26.7705,145.34,145.24,2.5474]
[1718539341612,7.6379,145.33,145.24,7.6423]
[1718539341824,7.6379,145.33,145.24,2.5474]
[1718539342468,0.34,145.32,145.24,2.5474]
[1718539342609,0.51,145.31,145.24,2.5474]
[1718539342805,0.17,145.3,145.24,2.5474]
[1718539343422,0.17,145.3,145.23,25.4759]
[1718539343624,0.17,145.3,145.24,2.5474]
[1718539343828,0.17,145.3,145.24,5.095]
[1718539344136,0.17,145.3,145.25,2.5473]
[1718539344435,0.51,145.31,145.25,2.5473]
[1718539344436,0.17,145.31,145.25,7.6417]
[1718539345219,0.68,145.32,145.25,7.6417]
[1718539345435,39.499,145.34,145.25,7.6417]
[1718539345739,2.5459,145.33,145.25,2.5472]
[1718539345951,42.0448,145.34,145.25,7.6418]
[1718539346529,0.51,145.33,145.26,2.5471]
[1718539346848,0.17,145.32,145.25,15.2836]
[1718539347055,0.17,145.32,145.25,7.6417]
[1718539347653,5.0927,145.31,145.22,5.0955]
[1718539347837,0.34,145.3,145.23,32.7382]
[1718539348041,0.17,145.3,145.24,2.5474]
[1718539348560,0.34,145.3,145.24,2.5474]
[1718539348765,0.34,145.3,145.23,25.0953]
[1718539349061,0.34,145.3,145.23,45.4762]
[1718539349232,0.34,145.3,145.24,2.5474]
[1718539349634,2.5459,145.33,145.25,7.6417]
[1718539349847,2.5459,145.33,145.23,20.0]
[1718539349848,16.5871,145.34,145.27,2.5469]
[1718539350035,16.5871,145.34,145.27,7.6408]
[1718539350561,16.5871,145.34,145.29,17.8256]
[1718539350765,16.5871,145.34,145.28,2.5466]
[1718539351062,16.5871,145.34,145.24,0.17]
[1718539351063,24.2245,145.34,145.26,7.6412]
[1718539351240,16.5871,145.34,145.27,7.6408]
[1718539351441,16.5871,145.34,145.28,2.5467]
[1718539351741,16.5871,145.34,145.27,25.4693]
[1718539351938,16.5871,145.34,145.28,2.5467]
[1718539352464,16.5871,145.34,145.27,7.6406]
[1718539352838,19.1328,145.34,145.27,2.5468]
[1718539353028,16.5871,145.34,145.27,2.5468]
[1718539353233,19.1328,145.34,145.27,2.5468]
[1718539353442,16.5871,145.34,145.23,20.0]
[1718539353663,16.5871,145.34,145.21,24.0479]
[1718539353664,0.17,145.32,145.25,7.6417]
[1718539353864,0.17,145.32,145.22,5.0955]
[1718539353865,2.5465,145.3,145.22,5.0955]
[1718539354031,0.34,145.29,145.22,7.6432]
[1718539354235,0.34,145.29,145.23,2.5476]
[1718539354755,0.51,145.3,145.23,2.5476]
[1718539355153,0.51,145.3,145.23,7.6429]
[1718539355470,0.51,145.3,145.23,2.5476]
[1718539356863,8.1494,145.3,145.21,11.3082]
[1718539357064,2.7168,145.28,145.2,25.4809]
[1718539357258,0.34,145.27,145.21,20.0]
[1718539357635,0.17,145.29,145.22,7.6431]
[1718539357835,0.51,145.29,145.22,7.6431]
[1718539358448,0.51,145.29,145.22,15.2866]
[1718539358654,0.51,145.29,145.22,7.6431]
[1718539359949,0.51,145.29,145.22,15.2865]
[1718539360137,0.34,145.29,145.22,25.4778]
[1718539360871,0.34,145.29,145.22,7.6431]
[1718539361348,0.34,145.29,145.22,2.5477]
[1718539362059,2.8866,145.29,145.21,45.4792]
[1718539362647,0.34,145.29,145.22,2.5478]
[1718539363743,0.34,145.29,145.22,7.6435]
[1718539364056,0.34,145.29,145.23,2.5476]
[1718539364261,0.34,145.29,145.23,7.6428]
[1718539364440,0.34,145.29,145.24,2.5474]
[1718539364860,0.34,145.29,145.23,25.4763]
[1718539365249,0.34,145.29,145.23,7.6427]
[1718539366250,15.3939,145.29,145.17,22.7994]
[1718539366462,17.9405,145.29,145.21,7.6438]
[1718539367349,15.3939,145.29,145.21,15.2878]
[1718539367549,15.3939,145.29,145.22,2.5478]
[1718539368159,17.9405,145.29,145.21,25.4797]
[1718539368361,17.9405,145.29,145.21,15.2877]
[1718539369248,23.0337,145.29,145.21,2.5478]
[1718539369663,23.0337,145.29,145.18,0.51]
[1718539369664,5.2636,145.28,145.19,22.9346]
[1718539369855,3.057,145.27,145.19,7.6447]
[1718539370174,0.17,145.26,145.19,2.5482]
[1718539370360,0.17,145.26,145.19,22.5482]
[1718539370858,0.17,145.26,145.19,20.0]
[1718539371059,0.17,145.26,145.19,22.5483]
[1718539371579,2.7171,145.26,145.18,2.5484]
[1718539371867,0.51,145.25,145.18,2.5484]
[1718539372258,0.51,145.25,145.18,7.6455]
[1718539372457,0.51,145.25,145.18,15.2911]
[1718539372655,0.51,145.25,145.19,2.5483]
[1718539372870,0.51,145.25,145.18,15.2911]
[1718539373684,0.51,145.25,145.18,22.9369]
[1718539373867,0.51,145.25,145.19,2.5483]
[1718539377477,0.51,145.25,145.19,7.645]
[1718539378077,0.51,145.25,145.19,15.2901]
[1718539379363,0.51,145.25,145.19,7.645]
[1718539379880,0.51,145.25,145.19,2.5483]
[1718539380089,0.51,145.25,145.19,7.645]
[1718539380261,0.51,145.25,145.19,2.5483]
[1718539380466,0.51,145.25,145.18,25.4846]
[1718539380782,0.51,145.25,145.18,7.6452]
[1718539383381,0.51,145.25,145.18,15.2908]
[1718539384791,16.5299,145.24,145.18,15.2908]
[1718539385477,16.5299,145.24,145.18,7.6452]
[1718539386083,16.5299,145.24,145.18,15.2908]
[1718539386289,16.5299,145.24,145.19,2.5483]
[1718539387675,16.5299,145.24,145.18,25.485]
[1718539388194,16.5299,145.24,145.19,2.5483]
[1718539388511,16.5299,145.24,145.14,6.526]
[1718539388669,16.5299,145.24,145.21,2.548]
[1718539388869,16.5299,145.24,145.2,7.6443]
[1718539389405,16.5299,145.24,145.2,2.5481]
[1718539389999,16.5299,145.24,145.18,15.2908]
[1718539390400,16.5299,145.24,145.19,2.5483]
[1718539391995,16.5299,145.24,145.19,7.645]
[1718539393489,16.5299,145.24,145.15,0.68]
[1718539393695,16.5299,145.24,145.2,2.5481]
[1718539394696,16.5299,145.24,145.19,25.4831]
[1718539395130,16.5299,145.24,145.2,2.5482]
[1718539395628,16.5299,145.24,145.19,25.4831]
[1718539396485,16.5299,145.24,145.19,7.6448]
[1718539397703,16.5299,145.24,145.19,2.5482]
[1718539398410,15.2674,145.28,145.2,2.5481]
[1718539398598,15.2674,145.28,145.2,7.6443]
[1718539398781,15.2674,145.28,145.2,15.2888]
[1718539398980,15.2674,145.28,145.2,7.6443]
[1718539400409,17.8142,145.28,145.2,7.6443]
[1718539400720,17.8142,145.28,145.2,2.5481]
[1718539401091,15.2674,145.28,145.2,7.6444]
[1718539401612,17.8142,145.28,145.2,2.5481]
[1718539403925,0.17,145.27,145.19,7.6447]
[1718539404106,3.057,145.27,145.19,2.5482]
[1718539404424,3.057,145.27,145.19,22.5482]
[1718539404599,0.51,145.27,145.19,27.6449]
[1718539404795,0.51,145.27,145.2,7.6444]
[1718539405025,0.34,145.27,145.2,7.6444]
[1718539405429,0.34,145.27,145.2,2.5481]
[1718539405933,0.34,145.27,145.2,7.6444]
[1718539406329,0.34,145.27,145.15,0.68]
[1718539406516,2.7171,145.26,145.18,2.5485]
[1718539406823,2.7171,145.26,145.18,22.5485]
[1718539407029,0.17,145.26,145.19,2.5483]
[1718539407329,2.8871,145.26,145.18,22.5485]
[1718539407514,0.17,145.25,145.18,22.5485]
[1718539407700,0.34,145.25,145.18,22.5485]
[1718539408408,0.34,145.25,145.18,27.6456]
[1718539408812,0.34,145.25,145.18,35.2912]
[1718539409534,0.34,145.25,145.19,2.5483]
[1718539412509,0.34,145.25,145.19,15.2901]
[1718539415241,0.34,145.25,145.2,2.5481]
[1718539417635,0.34,145.25,145.2,7.6444]
[1718539418149,0.34,145.25,145.2,2.5481]
[1718539418453,0.34,145.25,145.19,25.4833]
[1718539418634,0.34,145.25,145.2,2.5481]
[1718539419426,0.34,145.25,145.19,25.4833]
[1718539420450,0.34,145.25,145.2,2.5481]
[1718539420627,15.394,145.23,145.18,20.0]
[1718539421238,15.394,145.23,145.17,2.5486]
[1718539421445,15.394,145.23,145.17,7.646]
[1718539422356,0.17,145.22,145.17,2.5486]
[1718539422527,15.394,145.23,145.17,2.5486]
[1718539422727,15.394,145.23,145.17,7.646]
[1718539423339,15.394,145.23,145.17,25.4869]
[1718539424758,15.394,145.23,145.17,7.6459]
[1718539424944,15.394,145.23,145.17,2.5485]
[1718539425653,15.394,145.23,145.17,7.6459]
[1718539426848,15.394,145.23,145.17,2.5485]
[1718539427867,15.394,145.23,145.16,25.4879]
[1718539428761,15.394,145.23,145.17,2.5487]
[1718539430367,15.394,145.23,145.17,7.6461]
[1718539432172,15.394,145.23,145.17,2.5487]
[1718539433892,15.394,145.23,145.16,7.6463]
[1718539434570,15.394,145.23,145.16,15.2929]
[1718539435585,15.394,145.23,145.17,2.5487]
[1718539437882,15.394,145.23,145.16,2.5487]
[1718539438060,15.394,145.23,145.16,7.6464]
[1718539438585,15.394,145.23,145.16,15.2931]
[1718539438789,15.394,145.23,145.17,2.5487]
[1718539439780,15.394,145.23,145.16,25.4886]
[1718539440091,15.394,145.23,145.15,7.647]
[1718539440092,0.17,145.22,145.15,7.647]
[1718539440671,0.17,145.22,145.15,22.9416]
[1718539440872,0.17,145.22,145.15,25.4905]
[1718539441073,0.17,145.22,145.16,2.5488]
[1718539443007,0.17,145.22,145.16,2.5489]
[1718539443300,0.17,145.22,145.14,22.9428]
[1718539443301,0.34,145.22,145.14,22.9428]
[1718539443591,0.34,145.22,145.15,15.2942]
[1718539443592,0.34,145.21,145.15,15.2942]
[1718539443805,0.34,145.21,145.15,2.549]
[1718539444491,0.34,145.21,145.15,15.2943]
[1718539444694,0.34,145.21,145.14,7.6476]
[1718539444695,0.34,145.21,145.14,25.4915]
[1718539445073,0.34,145.21,145.14,7.6473]
[1718539445271,0.34,145.21,145.14,2.5491]
[1718539445577,0.34,145.21,145.14,27.6476]
[1718539445777,0.34,145.21,145.14,35.2953]
[1718539446468,0.34,145.21,145.15,2.549]
[1718539448598,0.34,145.21,145.14,27.6476]
[1718539448798,0.17,145.2,145.14,27.6475]
[1718539448977,0.17,145.2,145.14,7.6475]
[1718539449672,0.17,145.2,145.14,2.5491]
[1718539450369,0.17,145.2,145.14,2.5492]
[1718539450370,0.34,145.2,145.14,2.5492]
[1718539455574,0.34,145.2,145.13,22.9446]
[1718539455575,22.9833,145.19,145.13,2.5493]
[1718539455806,22.9833,145.19,145.13,27.6481]
[1718539456998,22.9833,145.19,145.14,2.5492]
[1718539457295,22.6433,145.19,145.13,20.0]
[1718539457475,22.6433,145.19,145.15,7.6468]
[1718539458396,22.6433,145.19,145.14,22.9422]
[1718539458600,22.6433,145.19,145.15,2.549]
[1718539459272,22.6433,145.19,145.14,25.4913]
[1718539459992,22.6433,145.19,145.15,15.2942]
[1718539460175,22.6433,145.19,145.15,7.6471]
[1718539461884,22.6433,145.19,145.15,2.549]
[1718539463895,22.6433,145.19,145.14,2.5491]
[1718539464098,22.6433,145.19,145.14,7.6475]
[1718539465093,22.6433,145.19,145.14,15.2952]
[1718539465299,22.6433,145.19,145.14,2.5491]
[1718539465501,22.6433,145.19,145.13,25.4929]
[1718539466610,22.6433,145.19,145.14,2.5492]
[1718539467206,22.6433,145.19,145.13,22.9437]
[1718539467388,22.6433,145.19,145.14,2.5492]
[1718539468603,22.6433,145.19,145.13,22.9437]
[1718539468803,22.6433,145.19,145.13,7.6479]
[1718539469791,22.6433,145.19,145.13,15.2961]
[1718539475424,22.6433,145.19,145.14,1.37158189]
[1718539477514,22.6433,145.19,145.13,15.2961]
[1718539477718,22.6433,145.19,145.13,7.6479]
[1718539478124,22.6433,145.19,145.13,15.2961]
[1718539478433,22.6433,145.19,145.14,1.37205239]
[1718539479127,22.6433,145.19,145.14,14.11805239]
[1718539479314,22.6433,145.19,145.15,1.37195786]
[1718539481519,22.6433,145.19,145.15,6.47005786]
[1718539481725,22.6433,145.19,145.15,16.66615786]
[1718539481929,22.6433,145.19,145.16,2.5489]
[1718539482101,22.6433,145.19,145.16,3.92076334]
[1718539482425,22.6433,145.19,145.16,1.37186334]
[1718539485425,22.6433,145.19,145.13,2.5494]
[1718539485642,22.6433,145.19,145.13,22.5494]
[1718539485818,22.6433,145.19,145.13,35.2963]
[1718539486700,22.6433,145.19,145.13,27.6481]
[1718539490832,22.6433,145.19,145.13,35.2964]
[1718539491733,22.6433,145.19,145.14,2.5492]
[1718539492445,22.6433,145.19,145.13,45.494]
[1718539493931,22.6433,145.19,145.14,2.5492]
[1718539496816,7.19020753,145.26,145.17,0.17]
[1718539497023,6.0172,145.28,145.19,0.17]
[1718539497329,15.2896,145.29,145.25,5.0945]
[1718539497521,15.2896,145.29,145.26,7.6413]
[1718539497916,15.2896,145.29,145.26,2.547]
[1718539498224,15.2896,145.29,145.26,12.7356]
[1718539498428,15.2896,145.29,145.28,15.2808]
[1718539498736,15.2896,145.29,145.28,7.6404]
[1718539499118,15.2896,145.29,145.28,30.57857337]
[1718539499434,15.2896,145.29,145.26,12.7356]
[1718539499621,15.2896,145.29,145.27,2.5469]
[1718539500348,15.2896,145.29,145.27,7.6408]
[1718539500807,15.2896,145.29,145.27,8.64905157]
[1718539501008,15.2896,145.29,145.27,3.55515157]
[1718539502442,15.2896,145.29,145.28,2.5468]
[1718539503447,15.2896,145.29,145.27,17.8286]
[1718539503614,15.2896,145.29,145.27,7.6407]
[1718539503810,15.2896,145.29,145.26,7.6412]
[1718539505216,15.2896,145.29,145.26,15.2826]
[1718539506639,15.2896,145.29,145.27,2.5469]
[1718539507140,15.2896,145.29,145.28,2.5468]
[1718539507315,6.0172,145.32,145.28,2.5468]
[1718539507316,22.114,145.32,145.28,2.5468]
[1718539507922,22.114,145.32,145.27,25.4691]
[1718539508215,2.003,145.28,145.27,25.4691]
[1718539508643,2.003,145.28,145.27,7.6407]
[1718539508845,2.003,145.28,145.27,25.4695]
[1718539509221,2.003,145.28,145.26,7.6411]
[1718539509858,2.003,145.28,145.27,2.5469]
[1718539510019,2.003,145.28,145.27,15.2817]
[1718539510225,2.003,145.28,145.27,25.4696]
[1718539510727,2.003,145.28,145.27,2.5469]
[1718539511139,2.003,145.28,145.27,7.6408]
[1718539511744,2.003,145.28,145.27,2.5469]
[1718539512057,2.003,145.28,145.25,11.21733928]
[1718539512229,2.003,145.28,145.18,10.59420594]
[1718539512437,16.0968,145.27,145.2,22.9328]
[1718539512619,16.0968,145.27,145.21,2.548]
[1718539512816,16.0968,145.27,145.21,7.644]
[1718539513020,16.0968,145.27,145.22,2.5478]
[1718539513239,16.0968,145.27,145.21,25.48]
[1718539513640,16.0968,145.27,145.22,2.5477]
[1718539514246,16.0968,145.27,145.21,25.4799]
[1718539515126,16.0968,145.27,145.22,2.5478]